fUST/lending_fUST_20250319
["ID","MTS","AMOUNT","RATE_DAILY","PERIOD"]
[356382289,1742361041082,-500.0,0.00014871,2]
[356382290,1742361041091,-500.0,0.00014871,2]
[356382291,1742361041101,-500.0,0.00014871,2]
[356382292,1742361041112,-500.0,0.00014871,2]
[356382293,1742361041122,-500.0,0.00014871,2]
[356382294,1742361041132,-500.0,0.00014871,2]
[356382295,1742361041142,-500.0,0.00014871,2]
[356382296,1742361041152,-500.0,0.00014871,2]
[356382297,1742361041161,-500.0,0.00014871,2]
[356382298,1742361041171,-500.0,0.00014871,2]
[356382299,1742361041181,-500.0,0.00014871,2]
[356382300,1742361041191,-500.0,0.00014871,2]
[356382301,1742361041202,-500.0,0.00014871,2]
[356382302,1742361041212,-500.0,0.00014871,2]
[356382303,1742361041222,-500.0,0.00014871,2]
[356382304,1742361041231,-500.0,0.00014871,2]
[356382305,1742361041241,-500.0,0.00014871,2]
[356382306,1742361041251,-500.0,0.00014871,2]
[356382307,1742361041261,-500.0,0.00014871,2]
[356382308,1742361041271,-500.0,0.00014871,2]
[356382309,1742361041280,-500.0,0.00014871,2]
[356382310,1742361041290,-500.0,0.00014871,2]
[356382311,1742361041300,-500.0,0.00014871,2]
[356382312,1742361041310,-500.0,0.00014871,2]
[356382313,1742361041320,-500.0,0.00014871,2]
[356382314,1742361041330,-500.0,0.00014871,2]
[356382315,1742361041340,-500.0,0.00014871,2]
[356382316,1742361041350,-500.0,0.00014871,2]
[356382317,1742361041360,-530.73059173,0.00014871,2]
[356382318,1742361041369,-500.0,0.00014871,2]
[356382319,1742361041377,-500.0,0.00014871,2]
[356382320,1742361041387,-500.0,0.00014871,2]
[356382321,1742361041396,-500.0,0.00014871,2]
[356382322,1742361041406,-500.0,0.00014873,2]
[356382323,1742361041415,-500.0,0.00014873,2]
[356382324,1742361041425,-500.0,0.00014873,2]
[356382325,1742361041434,-500.0,0.00014873,2]
[356382326,1742361041444,-500.0,0.00014873,2]
[356382327,1742361041454,-500.0,0.00014873,2]
[356382328,1742361041463,-500.0,0.00014873,2]
[356382329,1742361041473,-500.0,0.00014873,2]
[356382330,1742361041482,-500.0,0.00014873,2]
[356382331,1742361041491,-500.0,0.00014873,2]
[356382332,1742361041501,-500.0,0.00014873,2]
[356382333,1742361041510,-500.0,0.00014873,2]
[356382334,1742361041519,-500.0,0.00014873,2]
[356382335,1742361041529,-500.0,0.00014873,2]
[356382336,1742361041539,-500.0,0.00014873,2]
[356382337,1742361041548,-500.0,0.00014873,2]
[356382338,1742361041557,-197.86568055,0.00014873,2]
[356382339,1742361041566,-500.0,0.00014873,2]
[356382340,1742361041576,-154.269,0.00014873,2]
[356382341,1742361041586,-197.66772984,0.00014899,2]
[356382342,1742361041595,-183467.66630192,0.000149,2]
[356382384,1742361951123,-198.61230363,9.9e-05,2]
[356382385,1742361951144,-170.73892655,0.0001,2]
[356382386,1742361951164,-176.766379,0.00010959,2]
[356382387,1742361951184,-1079.27077836,0.00013919,2]
[356382391,1742361977901,888.12,0.0001517,120]
[356382393,1742362014104,-160.67017904,0.00013919,2]
[356382394,1742362014126,-16.43618299,0.00014596,2]
[356382448,1742362232817,-283.439,0.00013699,2]
[356382449,1742362232827,-160.0,0.00014512,2]
[356382450,1742362232837,-833.92477148,0.00014535,2]
[356382451,1742362232846,-160.0,0.00014535,2]
[356382452,1742362232856,-160.0,0.00014535,2]
[356382453,1742362232866,-417.89091067,0.00014535,2]
[356382454,1742362232875,-293.1278823,0.00014548,2]
[356382455,1742362232885,-798.18403496,0.00014583,2]
[356382456,1742362232894,-1002.4903493,0.00014682,2]
[356382457,1742362232904,-300.0,0.00014795,2]
[356382458,1742362232914,-2608.04755,0.00014796,2]
[356382459,1742362232923,-154.269,0.00014799,2]
[356382460,1742362232933,-212.63374192,0.00014799,2]
[356382461,1742362232943,-500.0,0.00014799,2]
[356382462,1742362232953,-500.0,0.00014799,2]
[356382463,1742362232962,-500.0,0.00014799,2]
[356382464,1742362232972,-500.0,0.00014799,2]
[356382465,1742362232981,-500.0,0.00014799,2]
[356382466,1742362232991,-500.0,0.00014799,2]
[356382467,1742362233001,-439.37024191,0.00014799,2]
[356382468,1742362233013,-500.0,0.00014799,2]
[356382469,1742362233181,-500.0,0.00014799,2]
[356382470,1742362233191,-500.0,0.00014799,2]
[356382471,1742362233200,-500.0,0.00014799,2]
[356382472,1742362233210,-500.0,0.00014799,2]
[356382473,1742362233220,-500.0,0.00014799,2]
[356382474,1742362233230,-500.0,0.00014799,2]
[356382475,1742362233239,-500.0,0.00014799,2]
[356382476,1742362233249,-500.0,0.00014799,2]
[356382477,1742362233260,-500.0,0.00014799,2]
[356382478,1742362233270,-500.0,0.00014799,2]
[356382479,1742362233279,-500.0,0.00014799,2]
[356382480,1742362233289,-500.0,0.00014799,2]
[356382481,1742362233299,-500.0,0.00014799,2]
[356382482,1742362233307,-500.0,0.00014799,2]
[356382483,1742362233317,-500.0,0.00014799,2]
[356382484,1742362233326,-500.0,0.00014799,2]
[356382485,1742362233336,-500.0,0.00014799,2]
[356382486,1742362233346,-500.0,0.00014799,2]
[356382487,1742362233355,-500.0,0.00014799,2]
[356382488,1742362233365,-500.0,0.00014799,2]
[356382489,1742362233374,-500.0,0.00014799,2]
[356382490,1742362233384,-500.0,0.00014799,2]
[356382491,1742362233394,-500.0,0.00014799,2]
[356382492,1742362233403,-500.0,0.00014799,2]
[356382493,1742362233413,-203.07305917,0.00014799,2]
[356382494,1742362233423,-19840.21910962,0.000148,2]
[356382495,1742362233435,-278.80680054,0.000148,2]
[356382511,1742362238439,-47975.52985899,0.000148,2]
[356382512,1742362238497,-8305.14827585,0.000148,2]
[356382513,1742362238510,-15988.34901759,0.000148,2]
[356382530,1742362246654,-14628.61864793,0.000148,2]
[356382531,1742362246716,-452.07000005,0.000148,2]
[356382551,1742363142115,-196.76751656,0.00010849,2]
[356382552,1742363142137,-176.766379,0.00010959,2]
[356382553,1742363142157,-696.0,0.00014,2]
[356382554,1742363142179,-251.26995133,0.000145,5]
[356382558,1742363227082,-160.0,0.00014,2]
[356382559,1742363227104,-257.73004867,0.000145,5]
[356382560,1742363227125,-484.32725928,0.00014523,2]
[356382566,1742363343343,10000.0,0.00015,120]
[356382570,1742363405038,10000.0,0.00015,120]
[356382571,1742363415395,10000.0,0.00015,120]
[356382572,1742363425717,10000.0,0.00015,120]
[356382601,1742363431733,-833.92477148,0.00014464,2]
[356382603,1742363431743,-160.0,0.00014464,2]
[356382605,1742363431752,-417.89091067,0.00014464,2]
[356382607,1742363431761,-160.0,0.00014531,2]
[356382609,1742363431771,-219.8459117,0.00014548,2]
[356382611,1742363431784,-151.25868481,0.00014601,2]
[356382615,1742363431811,-1287.74861999,0.00014601,2]
[356382619,1742363431848,-184.53638988,0.00014601,2]
[356382620,1742363431858,-497.49466804,0.000148,2]
[356382715,1742364450111,-176.766379,0.00010959,2]
[356382716,1742364450132,-724.13295755,0.00013886,2]
[356382807,1742364637907,-72.85120975,0.00013886,2]
[356382809,1742364637918,-1687.9089692,0.00014082,2]
[356382811,1742364637927,-164.8844338,0.00014452,2]
[356382813,1742364637937,-160.0,0.00014483,2]
[356382815,1742364637947,-833.92477148,0.00014483,2]
[356382817,1742364637958,-417.89091067,0.00014483,2]
[356382819,1742364637967,-160.0,0.00014483,2]
[356382820,1742364637977,-484.0,0.000145,5]
[356382822,1742364637986,-300.0,0.00014699,2]
[356382824,1742364637995,-1545.7597051,0.000147,2]
[356382826,1742364638008,-3998.07964216,0.000147,2]
[356382828,1742364638017,-9222.89920291,0.0001478,2]
[356382830,1742364638029,-1822.48520273,0.0001478,2]
[356382831,1742364638039,-159.93002688,0.00014799,2]
[356382832,1742364638048,-500.0,0.00014799,2]
[356382833,1742364638057,-15.80477039,0.00014799,2]
[356382842,1742364640207,-484.19522961,0.00014799,2]
[356382843,1742364640217,-300.34145102,0.00014799,2]
[356382844,1742364640227,-13166.03834039,0.000148,2]
[356382845,1742364640237,-154.269,0.000148,2]
[356382846,1742364640246,-198.0,0.000148,3]
[356382847,1742364640256,-317.05733617,0.00014899,2]
[356382848,1742364640266,-8418.20238088,0.000149,2]
[356382849,1742364640275,-152.963514,0.00014959,5]
[356382850,1742364640285,-1088.0,0.000151,7]
[356382851,1742364640294,-150.0,0.0001517,2]
[356382852,1742364640304,-151.0,0.00015443,2]
[356382853,1742364640313,-278.23978555,0.00015451,2]
[356382854,1742364640323,-188.40083242,0.00015452,2]
[356382855,1742364640332,-29347.60688964,0.00015452,2]
[356382856,1742364640344,-192652.39311036,0.00015452,2]
[356382857,1742364640353,-3000.0,0.00015452,2]
[356382858,1742364640363,-8315.64242736,0.0001559,2]
[356382859,1742364640373,-1728.85900244,0.00015673,2]
[356382860,1742364640383,-157.15240158,0.00015705,120]
[356382861,1742364640392,-18157.47294566,0.00015752,5]
[356382876,1742364643191,-110435.36387712,0.00015752,5]
[356382877,1742364643201,-500.0,0.00015773,2]
[356382878,1742364643211,-625.4115774,0.00015773,2]
[356382879,1742364643220,-500.0,0.00015773,2]
[356382880,1742364643229,-500.0,0.00015773,2]
[356382881,1742364643238,-500.0,0.00015773,2]
[356382882,1742364643249,-463.85167182,0.00015773,2]
[356382883,1742364643258,-500.0,0.00015773,2]
[356382884,1742364643267,-500.0,0.00015773,2]
[356382885,1742364643276,-6591.61162181,0.00015875,2]
[356382886,1742364643285,-9370.67785337,0.00016,2]
[356382887,1742364643294,-5000.0,0.00016,2]
[356382888,1742364643303,-5000.0,0.00016,2]
[356382889,1742364643312,-5000.0,0.00016,2]
[356382890,1742364643322,-5000.0,0.00016,2]
[356382891,1742364643331,-5000.0,0.00016,2]
[356382892,1742364643340,-5000.0,0.00016,2]
[356382893,1742364643349,-5000.0,0.00016,2]
[356382894,1742364643358,-5000.0,0.00016,2]
[356382895,1742364643368,-2000.0,0.00016,2]
[356382896,1742364643377,-3000.0,0.00016,2]
[356382897,1742364643387,-151.0,0.00016,2]
[356382898,1742364643396,-151.0,0.00016,2]
[356382899,1742364643405,-151.0,0.00016,2]
[356382900,1742364643415,-484.0,0.00016,6]
[356382901,1742364643423,-486.899498,0.00016,30]
[356382902,1742364643432,-3000.0,0.0001601,2]
[356382903,1742364643441,-3000.0,0.0001602,2]
[356382904,1742364643452,-788.71,0.00016022,2]
[356382905,1742364643461,-500.0,0.0001603,2]
[356382906,1742364643471,-500.0,0.0001603,2]
[356382907,1742364643480,-500.0,0.0001603,2]
[356382908,1742364643490,-500.0,0.0001603,2]
[356382909,1742364643499,-500.0,0.0001603,2]
[356382910,1742364643509,-500.0,0.0001603,2]
[356382911,1742364643518,-500.0,0.0001603,2]
[356382912,1742364643527,-500.0,0.0001603,2]
[356382913,1742364643537,-500.0,0.0001603,2]
[356382914,1742364643547,-500.0,0.0001603,2]
[356382915,1742364643556,-3000.0,0.0001603,2]
[356382916,1742364643565,-3000.0,0.0001604,2]
[356382917,1742364643578,-3000.0,0.0001605,2]
[356382918,1742364643588,-151.0,0.0001605,2]
[356382919,1742364643597,-1000.0,0.0001605,3]
[356382920,1742364643607,-1000.0,0.0001605,3]
[356382921,1742364643617,-1000.0,0.0001605,3]
[356382922,1742364643627,-1000.0,0.0001605,3]
[356382923,1742364643636,-1000.0,0.0001605,3]
[356382924,1742364643646,-1000.0,0.0001605,3]
[356382925,1742364643656,-1000.0,0.0001605,3]
[356382926,1742364643665,-1000.0,0.0001605,3]
[356382927,1742364643675,-1000.0,0.0001605,3]
[356382928,1742364643685,-1000.0,0.0001605,3]
[356382929,1742364643694,-1000.0,0.0001605,3]
[356382930,1742364643704,-1000.0,0.0001605,3]
[356382931,1742364643713,-1000.0,0.0001605,3]
[356382932,1742364643723,-1000.0,0.0001605,3]
[356382933,1742364643733,-1000.0,0.0001605,3]
[356382934,1742364643742,-1000.0,0.0001605,3]
[356382935,1742364643752,-1000.0,0.0001605,3]
[356382936,1742364643762,-1000.0,0.0001605,3]
[356382937,1742364643772,-1000.0,0.0001605,3]
[356382938,1742364643781,-1000.0,0.0001605,3]
[356382939,1742364643791,-1000.0,0.0001605,3]
[356382940,1742364643800,-1000.0,0.0001605,3]
[356382941,1742364643810,-1000.0,0.0001605,3]
[356382942,1742364643820,-1000.0,0.0001605,3]
[356382943,1742364643830,-1000.0,0.0001605,3]
[356382944,1742364643839,-1000.0,0.0001605,3]
[356382945,1742364643849,-1000.0,0.0001605,3]
[356382946,1742364643858,-1000.0,0.0001605,3]
[356382947,1742364643870,-1000.0,0.0001605,3]
[356382948,1742364643881,-1000.0,0.0001605,3]
[356382949,1742364643891,-1000.0,0.0001605,3]
[356382950,1742364643900,-1000.0,0.0001605,3]
[356382951,1742364643910,-1000.0,0.0001605,3]
[356382952,1742364643919,-194.38403255,0.0001605,3]
[356382953,1742364643928,-833.92477148,0.0001605,3]
[356382954,1742364643939,-3000.0,0.0001606,2]
[356382955,1742364643949,-165.40265845,0.00016066,2]
[356382958,1742364644122,-500.47568473,0.00016068,2]
[356382959,1742364644142,-3000.0,0.0001607,2]
[356382960,1742364644152,-3000.0,0.0001608,2]
[356382961,1742364644162,-3000.0,0.0001609,2]
[356382962,1742364644171,-420.0,0.00016092,2]
[356382963,1742364644181,-3000.0,0.000161,2]
[356382964,1742364644191,-3000.0,0.0001611,2]
[356382965,1742364644200,-3000.0,0.0001612,2]
[356382966,1742364644210,-171.777651,0.0001612,2]
[356382967,1742364644220,-3000.0,0.0001613,2]
[356382968,1742364644230,-3000.0,0.0001614,2]
[356382969,1742364644240,-3000.0,0.0001615,2]
[356382970,1742364644250,-3000.0,0.0001616,2]
[356382971,1742364644259,-3000.0,0.0001617,2]
[356382972,1742364644269,-3000.0,0.0001618,2]
[356382973,1742364644278,-3000.0,0.0001619,2]
[356382974,1742364644287,-3000.0,0.000162,2]
[356382975,1742364644297,-3000.0,0.0001621,2]
[356382976,1742364644306,-3000.0,0.0001622,2]
[356382977,1742364644316,-3000.0,0.0001623,2]
[356382978,1742364644326,-3000.0,0.0001624,2]
[356382979,1742364644335,-3000.0,0.0001625,2]
[356382980,1742364644345,-3000.0,0.0001626,2]
[356382981,1742364644354,-3000.0,0.0001627,2]
[356382982,1742364644363,-3000.0,0.0001628,2]
[356382983,1742364644374,-3000.0,0.0001629,2]
[356382984,1742364644383,-3000.0,0.000163,2]
[356382985,1742364644393,-3000.0,0.0001631,2]
[356382986,1742364644402,-3858.789634,0.0001632,2]
[356382987,1742364644411,-233.12770899,0.00016438,2]
[356382988,1742364644420,-507.42972874,0.00016438,2]
[356382989,1742364644429,-2646.57,0.00016438,7]
[356382990,1742364644439,-2646.57,0.00016438,7]
[356382991,1742364644449,-2646.57,0.00016438,7]
[356382992,1742364644458,-2646.57,0.00016438,7]
[356382993,1742364644468,-2646.57,0.00016438,7]
[356382994,1742364644478,-2646.57,0.00016438,7]
[356382995,1742364644487,-2646.57,0.00016438,7]
[356382996,1742364644496,-307.075881,0.00016438,2]
[356382997,1742364644505,-307.075881,0.00016438,2]
[356382998,1742364644515,-307.075881,0.00016438,2]
[356382999,1742364644525,-307.075881,0.00016438,2]
[356383000,1742364644534,-307.075881,0.00016438,2]
[356383001,1742364644543,-307.07589,0.00016438,2]
[356383002,1742364644552,-430.334138,0.00016438,2]
[356383003,1742364644562,-430.334138,0.00016438,2]
[356383004,1742364644571,-430.334138,0.00016438,2]
[356383005,1742364644580,-430.334138,0.00016438,2]
[356383006,1742364644590,-430.334138,0.00016438,2]
[356383007,1742364644600,-430.334138,0.00016438,2]
[356383008,1742364644609,-430.334138,0.00016438,2]
[356383009,1742364644619,-430.334138,0.00016438,2]
[356383010,1742364644628,-430.334138,0.00016438,2]
[356383011,1742364644638,-430.334138,0.00016438,2]
[356383012,1742364644648,-430.334138,0.00016438,2]
[356383013,1742364644659,-430.334138,0.00016438,2]
[356383014,1742364644668,-430.334138,0.00016438,2]
[356383015,1742364644678,-430.334138,0.00016438,2]
[356383016,1742364644688,-430.334138,0.00016438,2]
[356383017,1742364644698,-430.334138,0.00016438,2]
[356383018,1742364644707,-430.334138,0.00016438,2]
[356383019,1742364644716,-430.334138,0.00016438,2]
[356383020,1742364644725,-430.334138,0.00016438,2]
[356383021,1742364644735,-430.334144,0.00016438,2]
[356383022,1742364644746,-156.554797,0.00016438,2]
[356383023,1742364644755,-220.608483,0.00016438,2]
[356383024,1742364644764,-220.608483,0.00016438,2]
[356383025,1742364644774,-220.608483,0.00016438,2]
[356383026,1742364644783,-220.608483,0.00016438,2]
[356383027,1742364644793,-220.608483,0.00016438,2]
[356383028,1742364644802,-220.608483,0.00016438,2]
[356383029,1742364644812,-220.608483,0.00016438,2]
[356383030,1742364644821,-220.608483,0.00016438,2]
[356383031,1742364644830,-220.608483,0.00016438,2]
[356383032,1742364644840,-220.608483,0.00016438,2]
[356383033,1742364644850,-220.608483,0.00016438,2]
[356383034,1742364644859,-220.608483,0.00016438,2]
[356383035,1742364644869,-220.608483,0.00016438,2]
[356383036,1742364644883,-220.608483,0.00016438,2]
[356383037,1742364644893,-220.608483,0.00016438,2]
[356383038,1742364644903,-220.608483,0.00016438,2]
[356383039,1742364644912,-220.608483,0.00016438,2]
[356383040,1742364644923,-220.608483,0.00016438,2]
[356383041,1742364644933,-220.608483,0.00016438,2]
[356383042,1742364644942,-220.608477,0.00016438,2]
[356383043,1742364644952,-5018.0,0.00016575,7]
[356383044,1742364644962,-2646.57,0.00016697,7]
[356383045,1742364644972,-2646.57,0.00016971,7]
[356383046,1742364644982,-2970.0,0.00016982,2]
[356383047,1742364644992,-28814.53734368,0.00017,2]
[356383048,1742364645002,-833.92477148,0.00017,7]
[356383049,1742364645011,-2646.57,0.00017245,7]
[356383050,1742364645021,-484.0,0.000175,7]
[356383051,1742364645031,-2646.57,0.00017519,7]
[356383052,1742364645041,-2047.29205134,0.000176,2]
[356383053,1742364645050,-300.0,0.00017617,2]
[356383054,1742364645060,-2646.57,0.00017793,7]
[356383055,1742364645069,-500.0,0.00017973,2]
[356383056,1742364645079,-500.0,0.00017973,2]
[356383057,1742364645089,-500.0,0.00017973,2]
[356383058,1742364645099,-524.99321613,0.00017973,2]
[356383059,1742364645108,-500.0,0.00017973,2]
[356383060,1742364645118,-500.0,0.00017973,2]
[356383061,1742364645128,-500.0,0.00017973,2]
[356383062,1742364645137,-267.06243502,0.00017973,2]
[356383063,1742364645147,-500.0,0.00017973,2]
[356383064,1742364645157,-603.68194183,0.00017973,2]
[356383065,1742364645167,-267.06392459,0.00017973,2]
[356383066,1742364645176,-500.0,0.00017973,2]
[356383067,1742364645186,-500.0,0.00017973,2]
[356383068,1742364645196,-500.0,0.00017973,2]
[356383069,1742364645206,-500.0,0.00017973,2]
[356383070,1742364645215,-161.9514461,0.00017973,2]
[356383071,1742364645224,-500.0,0.00017973,2]
[356383072,1742364645234,-612.36634653,0.00017973,2]
[356383073,1742364645244,-500.0,0.00017973,2]
[356383074,1742364645253,-500.0,0.00017973,2]
[356383075,1742364645263,-500.0,0.00017973,2]
[356383076,1742364645273,-300.93203231,0.00017973,2]
[356383077,1742364645282,-557.98122582,0.00017973,2]
[356383078,1742364645292,-500.0,0.00017973,2]
[356383079,1742364645301,-416.97257494,0.00017973,2]
[356383080,1742364645311,-500.0,0.00017973,2]
[356383081,1742364645320,-500.0,0.00017973,2]
[356383082,1742364645330,-500.0,0.00017973,2]
[356383083,1742364645340,-387.55056764,0.00017973,2]
[356383084,1742364645349,-160.96846259,0.00017973,2]
[356383085,1742364645359,-500.0,0.00017973,2]
[356383086,1742364645370,-500.0,0.00017973,2]
[356383087,1742364645379,-500.0,0.00017973,2]
[356383088,1742364645389,-398.96349525,0.00017973,2]
[356383089,1742364645398,-508.07158859,0.00017973,2]
[356383090,1742364645408,-500.0,0.00017973,2]
[356383091,1742364645417,-613.07030683,0.00017973,2]
[356383092,1742364645426,-500.0,0.00017973,2]
[356383093,1742364645435,-517.72043549,0.00017973,2]
[356383094,1742364645443,-500.0,0.00017973,2]
[356383095,1742364645453,-279.75278749,0.00017973,2]
[356383096,1742364645463,-500.0,0.00017973,2]
[356383097,1742364645473,-592.88542444,0.00017973,2]
[356383098,1742364645483,-374.23276412,0.00017973,2]
[356383099,1742364645492,-433.52691349,0.00017973,2]
[356383100,1742364645502,-500.0,0.00017973,2]
[356383101,1742364645511,-500.0,0.00017973,2]
[356383102,1742364645521,-164.35748363,0.00017973,2]
[356383103,1742364645530,-500.0,0.00017973,2]
[356383104,1742364645539,-500.0,0.00017973,2]
[356383105,1742364645549,-500.0,0.00017973,2]
[356383106,1742364645558,-500.0,0.00017973,2]
[356383107,1742364645567,-500.0,0.00017973,2]
[356383108,1742364645576,-500.0,0.00017973,2]
[356383109,1742364645585,-500.0,0.00017973,2]
[356383110,1742364645594,-500.0,0.00017973,2]
[356383111,1742364645605,-564.34435962,0.00018,2]
[356383112,1742364645615,-154625.65217291,0.00018,2]
[356383113,1742364645624,-21103.7039402,0.00018,4]
[356383114,1742364645634,-200.0,0.00018,2]
[356383115,1742364645644,-167.82,0.00018,2]
[356383116,1742364645654,-167.82,0.00018,2]
[356383117,1742364645664,-167.82,0.00018,2]
[356383118,1742364645674,-250.0,0.00018,30]
[356383119,1742364645683,-2646.57,0.00018067,7]
[356383120,1742364645692,-503.87267729,0.0001817,2]
[356383121,1742364645702,-3300.0,0.0001817,2]
[356383122,1742364645711,-3300.0,0.0001817,2]
[356383123,1742364645722,-3300.0,0.0001817,2]
[356383124,1742364645731,-3300.0,0.0001817,2]
[356383125,1742364645741,-3300.0,0.0001817,2]
[356383126,1742364645750,-3300.0,0.0001817,2]
[356383127,1742364645759,-3300.0,0.0001817,2]
[356383128,1742364645768,-3300.0,0.0001817,2]
[356383129,1742364645777,-3300.0,0.0001817,2]
[356383130,1742364645787,-3300.0,0.0001817,2]
[356383131,1742364645797,-3300.0,0.0001817,2]
[356383132,1742364645807,-3300.0,0.0001817,2]
[356383133,1742364645816,-3300.0,0.0001817,2]
[356383134,1742364645826,-800.0,0.0001817,2]
[356383135,1742364645836,-3814.24033049,0.0001817,2]
[356383136,1742364645845,-1000.0,0.0001817,2]
[356383137,1742364645855,-800.0,0.0001817,2]
[356383138,1742364645865,-1000.0,0.0001817,2]
[356383139,1742364645877,-800.0,0.0001817,2]
[356383140,1742364645887,-1000.0,0.0001817,2]
[356383141,1742364645897,-800.0,0.0001817,2]
[356383142,1742364645907,-1000.0,0.0001817,2]
[356383143,1742364645918,-800.0,0.0001817,2]
[356383144,1742364645928,-1000.0,0.0001817,2]
[356383145,1742364645937,-1000.0,0.0001817,2]
[356383146,1742364645946,-800.0,0.0001817,2]
[356383147,1742364645956,-800.0,0.0001817,2]
[356383148,1742364645966,-800.0,0.0001817,2]
[356383149,1742364645974,-1000.0,0.0001817,2]
[356383150,1742364645983,-800.0,0.0001817,2]
[356383151,1742364645993,-1000.0,0.0001817,2]
[356383152,1742364646002,-800.0,0.0001817,2]
[356383153,1742364646010,-1000.0,0.0001817,2]
[356383154,1742364646019,-800.0,0.0001817,2]
[356383155,1742364646028,-1000.0,0.0001817,2]
[356383156,1742364646037,-800.0,0.0001817,2]
[356383157,1742364646047,-1000.0,0.0001817,2]
[356383158,1742364646057,-1011.53081138,0.0001817,2]
[356383159,1742364646067,-1000.0,0.0001817,2]
[356383160,1742364646076,-1000.0,0.0001817,2]
[356383161,1742364646086,-1142.21659924,0.0001817,2]
[356383163,1742364646096,-500.0,0.0001817,2]
[356383164,1742364646105,-500.0,0.0001817,2]
[356383165,1742364646115,-500.0,0.0001817,2]
[356383166,1742364646125,-942.88079384,0.0001817,2]
[356383167,1742364646134,-500.0,0.0001817,2]
[356383168,1742364646144,-500.0,0.0001817,2]
[356383169,1742364646154,-500.0,0.0001817,2]
[356383170,1742364646163,-500.0,0.0001817,2]
[356383171,1742364646173,-500.0,0.0001817,2]
[356383172,1742364646182,-500.0,0.0001817,2]
[356383173,1742364646192,-500.0,0.0001817,2]
[356383174,1742364646201,-500.0,0.0001817,2]
[356383175,1742364646211,-500.0,0.0001817,2]
[356383176,1742364646220,-535.50704709,0.0001817,2]
[356383177,1742364646230,-1000.0,0.00018213,2]
[356383178,1742364646239,-2646.57,0.00018341,7]
[356383179,1742364646248,-156.11,0.000186,2]
[356383180,1742364646258,-2646.57,0.00018615,7]
[356383181,1742364646267,-2646.57,0.00018889,7]
[356383182,1742364646277,-150.0,0.00018973,2]
[356383183,1742364646287,-200.0,0.00019,2]
[356383184,1742364646296,-41669.0,0.00019,2]
[356383185,1742364646306,-119628.0,0.00019,20]
[356383186,1742364646316,-484.0,0.00019,8]
[356383187,1742364646325,-5543.83934721,0.00019048,2]
[356383188,1742364646335,-833.92477148,0.0001911,7]
[356383189,1742364646345,-1000.0,0.00019152,2]
[356383190,1742364646354,-2646.57,0.00019163,7]
[356383191,1742364646364,-540.84682099,0.00019177,4]
[356383192,1742364646374,-300.0,0.00019178,2]
[356383193,1742364646384,-300.0,0.00019178,2]
[356383194,1742364646393,-300.0,0.00019178,2]
[356383195,1742364646403,-300.0,0.00019178,2]
[356383196,1742364646412,-300.0,0.00019178,2]
[356383197,1742364646423,-300.0,0.00019178,2]
[356383198,1742364646432,-300.0,0.00019178,2]
[356383199,1742364646442,-300.0,0.00019178,2]
[356383200,1742364646451,-300.0,0.00019178,2]
[356383201,1742364646461,-300.0,0.00019178,2]
[356383202,1742364646471,-300.0,0.00019178,2]
[356383203,1742364646480,-300.0,0.00019178,2]
[356383204,1742364646490,-300.0,0.00019178,2]
[356383205,1742364646500,-300.0,0.00019178,2]
[356383206,1742364646510,-300.0,0.00019178,2]